[Event "*** Titled Tuesday Blitz"]
[Site "Chess.com"]
[Date "2021.03.16"]
[Round "2"]
[White "ChristopherYoo"]
[Black "Vice64"]
[Result "0-1"]
[WhiteElo "2895"]
[BlackElo "2603"]
[TimeControl "180+1"]
[EndTime "10:17:14 PDT"]
[Termination "Vice64 won by resignation"]

1. c4 {[%clk 0:03:00.9]} 1... Nf6 {[%clk 0:02:59.5]} 2. g3 {[%clk 0:02:51.6]}
2... e5 {[%clk 0:02:59.3]} 3. Bg2 {[%clk 0:02:51.3]} 3... Nc6 {[%clk 0:02:59.9]}
4. Nf3 {[%clk 0:02:48.7]} 4... Bc5 {[%clk 0:02:58.5]} 5. O-O {[%clk 0:02:40.4]}
5... d6 {[%clk 0:02:58.5]} 6. Nc3 {[%clk 0:02:35.5]} 6... O-O {[%clk 0:02:54.7]}
7. d3 {[%clk 0:02:35.3]} 7... h6 {[%clk 0:02:53.9]} 8. a3 {[%clk 0:02:35.4]}
8... a5 {[%clk 0:02:53.7]} 9. Bd2 {[%clk 0:02:32.9]} 9... Bf5 {[%clk 0:02:51]}
10. Rb1 {[%clk 0:02:29.4]} 10... Qd7 {[%clk 0:02:49.4]} 11. Nd5 {[%clk
0:01:45.1]} 11... Nxd5 {[%clk 0:02:46.9]} 12. cxd5 {[%clk 0:01:44.5]} 12... Ne7
{[%clk 0:02:46.8]} 13. e4 {[%clk 0:01:21.2]} 13... Bh3 {[%clk 0:02:45.8]} 14. b4
{[%clk 0:01:15.4]} 14... axb4 {[%clk 0:02:44.4]} 15. axb4 {[%clk 0:01:16.3]}
15... Bb6 {[%clk 0:02:43.8]} 16. Qb3 {[%clk 0:01:11.2]} 16... Kh8 {[%clk
0:02:38.6]} 17. Ra1 {[%clk 0:01:10.6]} 17... Bxg2 {[%clk 0:02:37.5]} 18. Kxg2
{[%clk 0:01:10.2]} 18... Rxa1 {[%clk 0:02:35.8]} 19. Rxa1 {[%clk 0:01:09.5]}
19... f5 {[%clk 0:02:36]} 20. Qd1 {[%clk 0:00:50.2]} 20... Ng6 {[%clk
0:02:33.4]} 21. Qe2 {[%clk 0:00:34.2]} 21... fxe4 {[%clk 0:02:10.2]} 22. Qxe4
{[%clk 0:00:33.8]} 22... Qf7 {[%clk 0:02:04.6]} 23. Be3 {[%clk 0:00:28.3]} 23...
Bxe3 {[%clk 0:02:00.8]} 24. fxe3 {[%clk 0:00:29.2]} 24... Ne7 {[%clk 0:02:00.3]}
25. Ra7 {[%clk 0:00:24.1]} 25... Qxd5 {[%clk 0:01:57]} 26. Rxb7 {[%clk
0:00:21.7]} 26... Qa2+ {[%clk 0:01:47.1]} 27. Kh3 {[%clk 0:00:17.8]} 27... Qf2
{[%clk 0:01:32.1]} 28. Nh4 {[%clk 0:00:17.3]} 28... Qf1+ {[%clk 0:01:21.1]} 29.
Qg2 {[%clk 0:00:15.3]} 29... Qxd3 {[%clk 0:01:14.7]} 30. Rxc7 {[%clk 0:00:15.4]}
30... Rf7 {[%clk 0:01:03.1]} 31. e4 {[%clk 0:00:08.6]} 31... Kh7 {[%clk
0:01:00]} 32. Nf5 {[%clk 0:00:07.6]} 32... Qd1 {[%clk 0:00:31.6]} 33. g4 {[%clk
0:00:05.2]} 33... Nxf5 {[%clk 0:00:28.2]} 34. gxf5 {[%clk 0:00:02.7]} 34... Qh5+
{[%clk 0:00:24.4]} 35. Kg3 {[%clk 0:00:02.8]} 35... Qg5+ {[%clk 0:00:23.8]} 36.
Kh3 {[%clk 0:00:02.5]} 36... Qxg2+ {[%clk 0:00:24]} 37. Kxg2 {[%clk 0:00:03.4]}
37... Rxc7 {[%clk 0:00:24.4]} 0-1

[Event "*** Titled Tuesday Blitz"]
[Site "Chess.com"]
[Date "2021.03.16"]
[Round "2"]
[White "QuintilianoR"]
[Black "NiranjanNavalgund"]
[Result "0-1"]
[WhiteElo "2731"]
[BlackElo "2507"]
[TimeControl "180+1"]
[EndTime "10:17:14 PDT"]
[Termination "NiranjanNavalgund won by checkmate"]

1. d4 {[%clk 0:03:00.9]} 1... Nf6 {[%clk 0:02:59.6]} 2. c4 {[%clk 0:03:01.4]}
2... e6 {[%clk 0:02:52.8]} 3. Nf3 {[%clk 0:03:01.5]} 3... Bb4+ {[%clk
0:02:51.2]} 4. Nbd2 {[%clk 0:03:01.4]} 4... O-O {[%clk 0:02:47.3]} 5. a3 {[%clk
0:03:01.3]} 5... Bxd2+ {[%clk 0:02:47.1]} 6. Bxd2 {[%clk 0:03:01]} 6... d6
{[%clk 0:02:48]} 7. Bg5 {[%clk 0:03:00.6]} 7... Nbd7 {[%clk 0:02:47.1]} 8. e3
{[%clk 0:03:01]} 8... b6 {[%clk 0:02:45.4]} 9. Be2 {[%clk 0:03:00.9]} 9... Bb7
{[%clk 0:02:45.3]} 10. O-O {[%clk 0:03:01.5]} 10... Qe8 {[%clk 0:02:40.4]} 11.
b4 {[%clk 0:03:00.4]} 11... Ne4 {[%clk 0:02:40.4]} 12. Bh4 {[%clk 0:02:59.6]}
12... a5 {[%clk 0:02:40.4]} 13. Qc2 {[%clk 0:02:52]} 13... f5 {[%clk 0:02:39.6]}
14. d5 {[%clk 0:02:17.3]} 14... exd5 {[%clk 0:02:19.4]} 15. cxd5 {[%clk
0:02:12.6]} 15... Bxd5 {[%clk 0:02:18.3]} 16. Rad1 {[%clk 0:02:00.1]} 16... c6
{[%clk 0:02:03.3]} 17. Nd4 {[%clk 0:01:22.2]} 17... axb4 {[%clk 0:01:29.9]} 18.
axb4 {[%clk 0:00:59.2]} 18... Ra2 {[%clk 0:01:30.8]} 19. Qc1 {[%clk 0:00:59.3]}
19... Rxe2 {[%clk 0:01:18.9]} 20. Nxe2 {[%clk 0:00:57.3]} 20... g5 {[%clk
0:01:12.5]} 21. Bg3 {[%clk 0:00:56.5]} 21... f4 {[%clk 0:01:06.5]} 22. exf4
{[%clk 0:00:52.4]} 22... Nxg3 {[%clk 0:01:06.7]} 23. Nxg3 {[%clk 0:00:51.3]}
23... gxf4 {[%clk 0:01:06.5]} 24. Rxd5 {[%clk 0:00:23.7]} 24... cxd5 {[%clk
0:01:05.8]} 25. Re1 {[%clk 0:00:23.8]} 25... Qg6 {[%clk 0:01:05.2]} 26. Nf1
{[%clk 0:00:23.4]} 26... Ne5 {[%clk 0:01:03.3]} 27. Qd1 {[%clk 0:00:19.4]} 27...
d4 {[%clk 0:00:56]} 28. Kh1 {[%clk 0:00:18.1]} 28... f3 {[%clk 0:00:54.3]} 29.
Ng3 {[%clk 0:00:12.4]} 29... fxg2+ {[%clk 0:00:54.4]} 30. Kxg2 {[%clk
0:00:13.3]} 30... Nd3 {[%clk 0:00:50.4]} 31. Rf1 {[%clk 0:00:13.1]} 31... h5
{[%clk 0:00:45.9]} 32. h4 {[%clk 0:00:10.1]} 32... Nf4+ {[%clk 0:00:42.9]} 33.
Kh2 {[%clk 0:00:10]} 33... Qe6 {[%clk 0:00:41.8]} 34. Qf3 {[%clk 0:00:08.7]}
34... Qh3+ {[%clk 0:00:38.6]} 35. Kg1 {[%clk 0:00:09.1]} 35... Qxh4 {[%clk
0:00:38.9]} 36. Qe4 {[%clk 0:00:09.2]} 36... Qg4 {[%clk 0:00:31.8]} 37. Kh2
{[%clk 0:00:07.6]} 37... h4 {[%clk 0:00:31.3]} 38. Rg1 {[%clk 0:00:06.6]} 38...
Qh3# {[%clk 0:00:31.3]} 0-1

[Event "*** Titled Tuesday Blitz"]
[Site "Chess.com"]
[Date "2021.03.16"]
[Round "2"]
[White "Grieve72"]
[Black "Paladin61"]
[Result "0-1"]
[WhiteElo "2499"]
[BlackElo "2767"]
[TimeControl "180+1"]
[EndTime "10:17:17 PDT"]
[Termination "Paladin61 won by checkmate"]

1. d4 {[%clk 0:03:00.9]} 1... Nf6 {[%clk 0:02:59.9]} 2. Bg5 {[%clk 0:03:01.3]}
2... c5 {[%clk 0:02:59.3]} 3. Nc3 {[%clk 0:03:00.6]} 3... cxd4 {[%clk 0:02:59]}
4. Qxd4 {[%clk 0:03:01.5]} 4... Nc6 {[%clk 0:02:59.5]} 5. Qh4 {[%clk 0:03:02.1]}
5... d6 {[%clk 0:03:00]} 6. e4 {[%clk 0:03:02.7]} 6... Bd7 {[%clk 0:02:59.8]} 7.
O-O-O {[%clk 0:03:03]} 7... Rc8 {[%clk 0:02:58.4]} 8. f4 {[%clk 0:02:57.7]} 8...
Qa5 {[%clk 0:02:58.2]} 9. Bxf6 {[%clk 0:02:53.8]} 9... gxf6 {[%clk 0:02:57.5]}
10. Rd5 {[%clk 0:02:54.2]} 10... Qb6 {[%clk 0:02:52.1]} 11. Rb5 {[%clk
0:02:05.5]} 11... Qe3+ {[%clk 0:02:46.8]} 12. Kd1 {[%clk 0:01:49.1]} 12... Nd4
{[%clk 0:02:27.4]} 13. Rxb7 {[%clk 0:01:33.2]} 13... Bc6 {[%clk 0:02:15.5]} 14.
Rb4 {[%clk 0:00:47.1]} 14... Bxe4 {[%clk 0:01:08.9]} 15. Nxe4 {[%clk 0:00:48]}
15... Qxe4 {[%clk 0:01:09.1]} 16. Qf2 {[%clk 0:00:46.7]} 16... e5 {[%clk
0:00:57.1]} 17. Bd3 {[%clk 0:00:37.5]} 17... Qd5 {[%clk 0:00:49.2]} 18. Ne2
{[%clk 0:00:25]} 18... Nxc2 {[%clk 0:00:44.2]} 19. Rb3 {[%clk 0:00:20.6]} 19...
e4 {[%clk 0:00:31.5]} 20. Qxa7 {[%clk 0:00:06.5]} 20... exd3 {[%clk 0:00:22.7]}
21. Nc3 {[%clk 0:00:06.8]} 21... Qxg2 {[%clk 0:00:16.6]} 22. Qa4+ {[%clk
0:00:07.3]} 22... Qc6 {[%clk 0:00:08.8]} 23. Nb5 {[%clk 0:00:06.6]} 23... Be7
{[%clk 0:00:05.8]} 24. Rg1 {[%clk 0:00:05.6]} 24... Qf3+ {[%clk 0:00:05.3]} 25.
Kc1 {[%clk 0:00:04.8]} 25... Qe3+ {[%clk 0:00:04.9]} 26. Kd1 {[%clk 0:00:02.3]}
26... Qxg1+ {[%clk 0:00:05.1]} 27. Kd2 {[%clk 0:00:03.2]} 27... Qe3+ {[%clk
0:00:05.2]} 28. Kd1 {[%clk 0:00:03.5]} 28... Qe1# {[%clk 0:00:05.7]} 0-1

[Event "*** Titled Tuesday Blitz"]
[Site "Chess.com"]
[Date "2021.03.16"]
[Round "2"]
[White "Abund"]
[Black "ARTHURMOTIVATOR"]
[Result "1-0"]
[WhiteElo "2701"]
[BlackElo "2361"]
[TimeControl "180+1"]
[EndTime "10:17:17 PDT"]
[Termination "Abund won by resignation"]

1. e4 {[%clk 0:03:00.9]} 1... e5 {[%clk 0:02:58.1]} 2. Nf3 {[%clk 0:03:00.3]}
2... Nc6 {[%clk 0:02:53]} 3. Bc4 {[%clk 0:03:00.3]} 3... Nf6 {[%clk 0:02:51.5]}
4. Ng5 {[%clk 0:03:00.3]} 4... d5 {[%clk 0:02:50.4]} 5. exd5 {[%clk 0:03:00.8]}
5... Na5 {[%clk 0:02:50.2]} 6. Bb5+ {[%clk 0:03:01.2]} 6... c6 {[%clk
0:02:49.5]} 7. dxc6 {[%clk 0:03:02.1]} 7... bxc6 {[%clk 0:02:50]} 8. Bd3 {[%clk
0:03:02.7]} 8... Nd5 {[%clk 0:02:39.8]} 9. Nf3 {[%clk 0:03:01.2]} 9... Bd6
{[%clk 0:02:36]} 10. O-O {[%clk 0:03:00.7]} 10... Nf4 {[%clk 0:02:32.1]} 11. Re1
{[%clk 0:02:50.8]} 11... Nxd3 {[%clk 0:02:30.5]} 12. cxd3 {[%clk 0:02:51.6]}
12... O-O {[%clk 0:02:28.8]} 13. Nxe5 {[%clk 0:02:47.1]} 13... Re8 {[%clk
0:02:20.5]} 14. d4 {[%clk 0:02:34.3]} 14... c5 {[%clk 0:01:37.8]} 15. Qf3 {[%clk
0:02:19.8]} 15... Be6 {[%clk 0:01:36.9]} 16. dxc5 {[%clk 0:01:47.3]} 16... Bxe5
{[%clk 0:00:50.2]} 17. Rxe5 {[%clk 0:01:45.9]} 17... Bd5 {[%clk 0:00:47.3]} 18.
Rxe8+ {[%clk 0:01:16.8]} 18... Qxe8 {[%clk 0:00:46.1]} 19. Qe3 {[%clk
0:01:17.3]} 19... Qc6 {[%clk 0:00:31.7]} 20. f3 {[%clk 0:01:08.9]} 20... Re8
{[%clk 0:00:30.2]} 21. Qf2 {[%clk 0:01:08.8]} 21... Nb7 {[%clk 0:00:29.7]} 22.
d4 {[%clk 0:01:05.6]} 22... Nd6 {[%clk 0:00:26.5]} 23. Nc3 {[%clk 0:01:03.2]}
23... Nf5 {[%clk 0:00:25.6]} 24. Bf4 {[%clk 0:00:59.9]} 24... Qe6 {[%clk
0:00:23.2]} 25. g4 {[%clk 0:00:43.7]} 25... Nh6 {[%clk 0:00:13.2]} 26. h3 {[%clk
0:00:31.5]} 26... f6 {[%clk 0:00:09.5]} 27. Bd2 {[%clk 0:00:29.9]} 27... Qd7
{[%clk 0:00:06.8]} 28. Re1 {[%clk 0:00:29.1]} 28... Rd8 {[%clk 0:00:07.1]} 29.
Bxh6 {[%clk 0:00:28.7]} 29... gxh6 {[%clk 0:00:06.8]} 30. Ne4 {[%clk 0:00:25.6]}
30... Kg7 {[%clk 0:00:04.9]} 31. Ng3 {[%clk 0:00:23.2]} 31... Bxa2 {[%clk
0:00:04.4]} 32. Re7+ {[%clk 0:00:21.8]} 32... Kh8 {[%clk 0:00:05.3]} 33. Rxd7
{[%clk 0:00:21.6]} 1-0

[Event "*** Titled Tuesday Blitz"]
[Site "Chess.com"]
[Date "2021.03.16"]
[Round "2"]
[White "rychessmaster1"]
[Black "jefferyx"]
[Result "0-1"]
[WhiteElo "2618"]
[BlackElo "3008"]
[TimeControl "180+1"]
[EndTime "10:17:19 PDT"]
[Termination "jefferyx won on time"]

1. d4 {[%clk 0:03:00.9]} 1... Nf6 {[%clk 0:02:59.7]} 2. Nc3 {[%clk 0:03:01.3]}
2... d5 {[%clk 0:02:59.6]} 3. Bf4 {[%clk 0:03:01.7]} 3... e6 {[%clk 0:03:00.1]}
4. Nb5 {[%clk 0:03:01.8]} 4... a6 {[%clk 0:03:00.1]} 5. Nxc7+ {[%clk 0:03:01]}
5... Kd7 {[%clk 0:02:46.5]} 6. Nxa8 {[%clk 0:03:01]} 6... Nc6 {[%clk 0:02:46.6]}
7. c3 {[%clk 0:02:56.8]} 7... Ne8 {[%clk 0:02:39.7]} 8. Qb3 {[%clk 0:02:51.2]}
8... b5 {[%clk 0:02:35.7]} 9. a4 {[%clk 0:02:50.5]} 9... b4 {[%clk 0:02:35.9]}
10. e4 {[%clk 0:02:32.9]} 10... Na5 {[%clk 0:02:27.8]} 11. Qd1 {[%clk
0:02:25.6]} 11... Bb7 {[%clk 0:02:27.7]} 12. exd5 {[%clk 0:02:16.9]} 12... Bxd5
{[%clk 0:02:28.6]} 13. Nf3 {[%clk 0:02:07.8]} 13... f6 {[%clk 0:02:28.9]} 14.
Bxa6 {[%clk 0:02:04.8]} 14... Qxa8 {[%clk 0:02:29.2]} 15. Bb5+ {[%clk
0:02:04.4]} 15... Kd8 {[%clk 0:02:29.8]} 16. O-O {[%clk 0:01:59.8]} 16... g5
{[%clk 0:02:29.8]} 17. Bg3 {[%clk 0:02:00.1]} 17... h5 {[%clk 0:02:29]} 18. c4
{[%clk 0:01:40.6]} 18... Nxc4 {[%clk 0:02:18.3]} 19. Rc1 {[%clk 0:01:28.3]}
19... Ncd6 {[%clk 0:02:05]} 20. Bxe8 {[%clk 0:01:21.8]} 20... Kxe8 {[%clk
0:01:54.5]} 21. Qc2 {[%clk 0:01:19.2]} 21... Nf5 {[%clk 0:01:46.6]} 22. Qc8+
{[%clk 0:01:17]} 22... Kf7 {[%clk 0:01:47.1]} 23. Qxa8 {[%clk 0:01:16.5]} 23...
Bxa8 {[%clk 0:01:48]} 24. Rc7+ {[%clk 0:01:05.5]} 24... Be7 {[%clk 0:01:44]} 25.
h3 {[%clk 0:00:57.5]} 25... Bd5 {[%clk 0:01:39.9]} 26. a5 {[%clk 0:00:54.9]}
26... Ra8 {[%clk 0:01:37.5]} 27. Ra1 {[%clk 0:00:54.8]} 27... Ra6 {[%clk
0:01:33.5]} 28. Rcc1 {[%clk 0:00:37.3]} 28... Bxf3 {[%clk 0:01:30.2]} 29. gxf3
{[%clk 0:00:37.3]} 29... Nxd4 {[%clk 0:01:31.1]} 30. Rc7 {[%clk 0:00:35.7]}
30... e5 {[%clk 0:01:26.9]} 31. Kg2 {[%clk 0:00:32.2]} 31... h4 {[%clk
0:01:24.9]} 32. Bh2 {[%clk 0:00:32.6]} 32... Nb3 {[%clk 0:01:24.3]} 33. Rd1
{[%clk 0:00:31.5]} 33... Ke6 {[%clk 0:01:19.4]} 34. Rdd7 {[%clk 0:00:29.6]}
34... Bd6 {[%clk 0:01:19.1]} 35. Ra7 {[%clk 0:00:30]} 35... Rxa5 {[%clk
0:01:16.3]} 36. Rxa5 {[%clk 0:00:30]} 36... Nxa5 {[%clk 0:01:16.5]} 37. Rh7
{[%clk 0:00:28.6]} 37... Nc4 {[%clk 0:01:16.1]} 38. f4 {[%clk 0:00:25.8]} 38...
exf4 {[%clk 0:01:15.2]} 39. f3 {[%clk 0:00:21.5]} 39... Nxb2 {[%clk 0:01:15]}
40. Bg1 {[%clk 0:00:21.9]} 40... Nc4 {[%clk 0:01:15.2]} 41. Bd4 {[%clk
0:00:21.4]} 41... Ne3+ {[%clk 0:01:06]} 42. Bxe3 {[%clk 0:00:19.7]} 42... fxe3
{[%clk 0:01:06]} 43. Rb7 {[%clk 0:00:20.4]} 43... Ke5 {[%clk 0:00:59.6]} 44. Kf1
{[%clk 0:00:20.4]} 44... Kf4 {[%clk 0:00:59.9]} 45. Ke2 {[%clk 0:00:20.5]} 45...
Kg3 {[%clk 0:00:58.3]} 46. Rb6 {[%clk 0:00:19.8]} 46... Bc5 {[%clk 0:00:50]} 47.
Rxf6 {[%clk 0:00:19.9]} 47... b3 {[%clk 0:00:50.2]} 48. Rf7 {[%clk 0:00:17.2]}
48... b2 {[%clk 0:00:47.8]} 49. Rb7 {[%clk 0:00:17.6]} 49... Bd4 {[%clk
0:00:48.4]} 50. Rb4 {[%clk 0:00:15.2]} 50... Kxh3 {[%clk 0:00:48.2]} 51. Kd3
{[%clk 0:00:14.1]} 51... Kg3 {[%clk 0:00:46.6]} 52. Kc2 {[%clk 0:00:13.9]} 52...
e2 {[%clk 0:00:46.4]} 0-1

[Event "*** Titled Tuesday Blitz"]
[Site "Chess.com"]
[Date "2021.03.16"]
[Round "2"]
[White "PattyCastillo"]
[Black "SergeyShtyka"]
[Result "0-1"]
[WhiteElo "2027"]
[BlackElo "2407"]
[TimeControl "180+1"]
[EndTime "10:17:21 PDT"]
[Termination "SergeyShtyka won on time"]

1. d4 {[%clk 0:02:55.3]} 1... c5 {[%clk 0:02:59.8]} 2. e3 {[%clk 0:02:54.8]}
2... e6 {[%clk 0:02:57.5]} 3. Nf3 {[%clk 0:02:54.3]} 3... Nf6 {[%clk 0:02:57.2]}
4. Bd3 {[%clk 0:02:54]} 4... Nc6 {[%clk 0:02:57.1]} 5. b3 {[%clk 0:02:53]} 5...
d6 {[%clk 0:02:54.7]} 6. Bb2 {[%clk 0:02:52.8]} 6... Be7 {[%clk 0:02:54.8]} 7.
O-O {[%clk 0:02:52.2]} 7... O-O {[%clk 0:02:54.9]} 8. Nbd2 {[%clk 0:02:51.5]}
8... b6 {[%clk 0:02:54.4]} 9. a3 {[%clk 0:02:48.7]} 9... Bb7 {[%clk 0:02:50.5]}
10. Qe2 {[%clk 0:02:48.2]} 10... a6 {[%clk 0:02:45]} 11. c4 {[%clk 0:02:48]}
11... Qc7 {[%clk 0:02:40.1]} 12. Rac1 {[%clk 0:02:46.1]} 12... Rad8 {[%clk
0:02:38.7]} 13. Rfd1 {[%clk 0:02:45.1]} 13... Qb8 {[%clk 0:02:38.3]} 14. e4
{[%clk 0:02:28.8]} 14... cxd4 {[%clk 0:02:35.1]} 15. Nxd4 {[%clk 0:02:28.5]}
15... Ne5 {[%clk 0:02:30.9]} 16. Bb1 {[%clk 0:01:48]} 16... Qa8 {[%clk
0:02:24.7]} 17. f3 {[%clk 0:01:47.3]} 17... Ng6 {[%clk 0:02:20.8]} 18. g3 {[%clk
0:01:35.1]} 18... Rfe8 {[%clk 0:02:19.1]} 19. Nf1 {[%clk 0:01:09.3]} 19... d5
{[%clk 0:02:15.4]} 20. e5 {[%clk 0:01:05]} 20... Nd7 {[%clk 0:02:12.8]} 21. cxd5
{[%clk 0:00:51.9]} 21... Bxd5 {[%clk 0:02:10.3]} 22. Ne3 {[%clk 0:00:39.1]}
22... Bb7 {[%clk 0:02:04.8]} 23. Ng4 {[%clk 0:00:38.5]} 23... Nc5 {[%clk
0:01:21.8]} 24. Nf6+ {[%clk 0:00:25.8]} 24... gxf6 {[%clk 0:01:19.2]} 25. exf6
{[%clk 0:00:25.7]} 25... Bf8 {[%clk 0:01:10.6]} 26. Qe3 {[%clk 0:00:13.1]} 26...
e5 {[%clk 0:00:58.9]} 27. Nf5 {[%clk 0:00:10.1]} 27... Rxd1+ {[%clk 0:00:46.6]}
28. Rxd1 {[%clk 0:00:09.9]} 28... Bxf3 {[%clk 0:00:46.7]} 29. Nh6+ {[%clk
0:00:08.4]} 29... Bxh6 {[%clk 0:00:22.5]} 30. Qxh6 {[%clk 0:00:08.4]} 30... Ne6
{[%clk 0:00:22.7]} 31. Bf5 {[%clk 0:00:05.9]} 31... Ngf8 {[%clk 0:00:15.2]} 32.
Bxe6 {[%clk 0:00:02.9]} 32... Nxe6 {[%clk 0:00:14.7]} 33. Qh4 {[%clk 0:00:01.2]}
33... Qe4 {[%clk 0:00:13.1]} 0-1

[Event "*** Titled Tuesday Blitz"]
[Site "Chess.com"]
[Date "2021.03.16"]
[Round "2"]
[White "fabianvivasz"]
[Black "Revnov"]
[Result "1-0"]
[WhiteElo "2380"]
[BlackElo "2686"]
[TimeControl "180+1"]
[EndTime "10:17:23 PDT"]
[Termination "fabianvivasz won by resignation"]

1. e4 {[%clk 0:03:00.9]} 1... e5 {[%clk 0:02:59.7]} 2. Nf3 {[%clk 0:03:00.5]}
2... d6 {[%clk 0:02:59.9]} 3. d4 {[%clk 0:02:59.7]} 3... exd4 {[%clk 0:03:00.6]}
4. Nxd4 {[%clk 0:02:59.1]} 4... Nf6 {[%clk 0:03:01.2]} 5. Nc3 {[%clk 0:02:58.7]}
5... Be7 {[%clk 0:03:01.8]} 6. Bf4 {[%clk 0:02:56.9]} 6... Nc6 {[%clk
0:03:00.4]} 7. Qd2 {[%clk 0:02:54.2]} 7... Nxd4 {[%clk 0:03:00.1]} 8. Qxd4
{[%clk 0:02:54.2]} 8... O-O {[%clk 0:02:59.7]} 9. O-O-O {[%clk 0:02:49.9]} 9...
a6 {[%clk 0:02:57.8]} 10. f3 {[%clk 0:02:47.7]} 10... b5 {[%clk 0:02:57.6]} 11.
e5 {[%clk 0:01:47.6]} 11... dxe5 {[%clk 0:02:56.5]} 12. Qxe5 {[%clk 0:01:48.5]}
12... Bd6 {[%clk 0:02:52.9]} 13. Qd4 {[%clk 0:01:45.4]} 13... Bxf4+ {[%clk
0:02:35.6]} 14. Qxf4 {[%clk 0:01:46.3]} 14... Qe7 {[%clk 0:02:33.7]} 15. Bd3
{[%clk 0:01:40.7]} 15... Be6 {[%clk 0:02:21.9]} 16. Rhe1 {[%clk 0:01:37.6]}
16... Rfd8 {[%clk 0:01:41.4]} 17. g4 {[%clk 0:01:34.2]} 17... g6 {[%clk
0:01:32.2]} 18. g5 {[%clk 0:01:19.8]} 18... Nh5 {[%clk 0:01:30.9]} 19. Qe5
{[%clk 0:01:09.8]} 19... Qd6 {[%clk 0:01:10.6]} 20. Qxd6 {[%clk 0:00:27.7]}
20... Rxd6 {[%clk 0:01:11.5]} 21. Be4 {[%clk 0:00:27.9]} 21... Rad8 {[%clk
0:01:10.2]} 22. Rxd6 {[%clk 0:00:27]} 22... Rxd6 {[%clk 0:01:11.1]} 23. Rd1
{[%clk 0:00:26.8]} 23... Rxd1+ {[%clk 0:01:09.6]} 24. Kxd1 {[%clk 0:00:27.2]}
24... Nf4 {[%clk 0:01:04.2]} 25. b4 {[%clk 0:00:22]} 25... Nh3 {[%clk
0:00:56.3]} 26. Bb7 {[%clk 0:00:21.4]} 26... Nxg5 {[%clk 0:00:55.7]} 27. h4
{[%clk 0:00:20.7]} 27... Nh3 {[%clk 0:00:52.5]} 28. Bxa6 {[%clk 0:00:20.3]}
28... c6 {[%clk 0:00:52.8]} 29. Bb7 {[%clk 0:00:20.1]} 29... Bd7 {[%clk
0:00:52.9]} 30. Ne4 {[%clk 0:00:20.3]} 30... Nf4 {[%clk 0:00:44.8]} 31. Nf6+
{[%clk 0:00:20.2]} 31... Kg7 {[%clk 0:00:37.4]} 32. Nxd7 {[%clk 0:00:21.1]}
32... h5 {[%clk 0:00:37.5]} 33. Bxc6 {[%clk 0:00:20.9]} 33... g5 {[%clk
0:00:38]} 34. hxg5 {[%clk 0:00:20.6]} 34... h4 {[%clk 0:00:38.9]} 35. Ne5 {[%clk
0:00:20.5]} 35... h3 {[%clk 0:00:36.6]} 36. Ng4 {[%clk 0:00:20.9]} 36... Kg6
{[%clk 0:00:37]} 37. Bxb5 {[%clk 0:00:19.1]} 37... Kxg5 {[%clk 0:00:37.5]} 38.
a4 {[%clk 0:00:17.1]} 38... Kh4 {[%clk 0:00:35.8]} 39. a5 {[%clk 0:00:16.3]}
39... f5 {[%clk 0:00:34.9]} 40. Nh2 {[%clk 0:00:15.1]} 40... Kg3 {[%clk
0:00:35.4]} 41. Nf1+ {[%clk 0:00:15.5]} 41... Kg2 {[%clk 0:00:33.4]} 42. a6
{[%clk 0:00:15.9]} 42... Nd5 {[%clk 0:00:33.4]} 43. a7 {[%clk 0:00:13.4]} 43...
Nc7 {[%clk 0:00:33.8]} 44. f4 {[%clk 0:00:12.4]} 44... Kf3 {[%clk 0:00:28.4]}
45. Bc6+ {[%clk 0:00:11.5]} 45... Kxf4 {[%clk 0:00:28.7]} 46. b5 {[%clk
0:00:12.3]} 1-0

[Event "*** Titled Tuesday Blitz"]
[Site "Chess.com"]
[Date "2021.03.16"]
[Round "2"]
[White "TheCairnTerrier"]
[Black "Fighter008"]
[Result "0-1"]
[WhiteElo "2157"]
[BlackElo "2631"]
[TimeControl "180+1"]
[EndTime "10:17:23 PDT"]
[Termination "Fighter008 won on time"]

1. e4 {[%clk 0:03:00.9]} 1... c5 {[%clk 0:03:00]} 2. Nf3 {[%clk 0:03:00.5]} 2...
e6 {[%clk 0:02:59.7]} 3. d4 {[%clk 0:02:59.7]} 3... cxd4 {[%clk 0:03:00.6]} 4.
Nxd4 {[%clk 0:02:59.9]} 4... a6 {[%clk 0:03:01.2]} 5. Be2 {[%clk 0:02:56.3]}
5... Nf6 {[%clk 0:02:59.2]} 6. Nc3 {[%clk 0:02:55.4]} 6... d6 {[%clk 0:02:59.6]}
7. O-O {[%clk 0:02:50.2]} 7... Be7 {[%clk 0:03:00.1]} 8. f4 {[%clk 0:02:45.2]}
8... O-O {[%clk 0:02:59.7]} 9. Be3 {[%clk 0:02:41.5]} 9... Nc6 {[%clk
0:02:58.9]} 10. Qe1 {[%clk 0:02:04]} 10... Bd7 {[%clk 0:02:52.5]} 11. Qg3 {[%clk
0:02:00.4]} 11... Nxd4 {[%clk 0:02:42.4]} 12. Bxd4 {[%clk 0:02:00.4]} 12... Bc6
{[%clk 0:02:42.6]} 13. Bf3 {[%clk 0:01:47.6]} 13... Rc8 {[%clk 0:02:29.2]} 14.
Rad1 {[%clk 0:01:40.9]} 14... Qa5 {[%clk 0:02:26.6]} 15. e5 {[%clk 0:01:22.4]}
15... dxe5 {[%clk 0:02:21.5]} 16. fxe5 {[%clk 0:01:17.7]} 16... Ne8 {[%clk
0:01:57.2]} 17. Ne4 {[%clk 0:01:16.5]} 17... Bxe4 {[%clk 0:01:52.8]} 18. Bxe4
{[%clk 0:01:15.2]} 18... Bc5 {[%clk 0:01:37.4]} 19. Kh1 {[%clk 0:00:55.5]} 19...
Bxd4 {[%clk 0:01:31.6]} 20. Rxd4 {[%clk 0:00:56.4]} 20... Qb6 {[%clk 0:01:32.1]}
21. Rd3 {[%clk 0:00:52.3]} 21... Qxb2 {[%clk 0:01:28]} 22. Qh4 {[%clk
0:00:51.6]} 22... g6 {[%clk 0:01:10.8]} 23. Rh3 {[%clk 0:00:45.9]} 23... h5
{[%clk 0:01:10]} 24. Qg5 {[%clk 0:00:43.7]} 24... Ng7 {[%clk 0:01:06.5]} 25. g4
{[%clk 0:00:32.8]} 25... Rc5 {[%clk 0:00:54.4]} 26. gxh5 {[%clk 0:00:08.5]}
26... Qxe5 {[%clk 0:00:51.1]} 27. Qxe5 {[%clk 0:00:06.8]} 27... Rxe5 {[%clk
0:00:50.7]} 28. Bxb7 {[%clk 0:00:07.7]} 28... Nxh5 {[%clk 0:00:43.1]} 29. Bxa6
{[%clk 0:00:07.5]} 29... Rc5 {[%clk 0:00:40.1]} 30. Bd3 {[%clk 0:00:07.1]} 30...
Ra8 {[%clk 0:00:38.6]} 31. Rg1 {[%clk 0:00:07]} 31... Rxa2 {[%clk 0:00:27.7]}
32. Rh4 {[%clk 0:00:04.6]} 32... Kg7 {[%clk 0:00:21.6]} 33. Rb4 {[%clk
0:00:03.7]} 33... Ra7 {[%clk 0:00:20.3]} 34. Rb6 {[%clk 0:00:02.2]} 34... Nf4
{[%clk 0:00:18.7]} 0-1